Cogmind - Beta 13 @@@ ROGUE MODE // 2024.04.04 @ 16:15:40 Player: YtnomSnrub Result: Destroyed by H-55 Commando with Assault Rifle Performance ------------- Evolutions (2) 1000 Regions Visited (5) 1000 Robots Destroyed (40) 200 Value Destroyed (1021) 1021 Prototype IDs (3) 60 Alien Tech Used (0) 0 Bonus (0) 0 TOTAL SCORE: 3281 Bonus ------- None Cogmind --------- Core Integrity 0/550 Matter 283/300 Energy 99/100 System Corruption 4% Temperature Cool (9) Movement Core (50) Location -8/Materials Parts ------- > --- POWER (1) -------- (None) > --- PROPULSION (4) --- (None) > --- UTILITY (4) ------ (None) > --- WEAPON (2) ------- (None) > --- INVENTORY (5) ---- Large Storage Unit Improved Targeting Computer Reaction Control System Heavy Laser Assault Cannon Peak State ------------ > --- POWER ------------ Nuclear Core > --- PROPULSION ------- Aluminum Leg Titanium Leg > --- UTILITY ---------- Large Storage Unit Improved Sensor Array Signal Interpreter Improved Targeting Computer > --- WEAPON ----------- EM Pulse Cannon EM Pulse Cannon > --- INVENTORY -------- Large Storage Unit Advanced Weight Redist. System Improved Sensor Array Improved Sensor Array Improved Terrain Scanner Improved Terrain Scanner Improved Targeting Computer Improved Targeting Computer Hardened Light Armor Plating Hardened Light Armor Plating EM Pulse Cannon Ion Cannon Minigun Assault Cannon Grenade Launcher [Rating: 23] Favorites ----------- Power Improved Ion Engine Engine Improved Ion Engine Power Core Light Nuclear Core Propulsion Aluminum Leg Treads Light Treads Leg Aluminum Leg Wheel Wheel Hover Unit Gravmag System Flight Unit Improved VTOL Module Utility Signal Interpreter Device Improved Sensor Array Storage Large Storage Unit Processor Signal Interpreter Protection Hardened Light Armor Plating Weapon EM Pulse Cannon Energy Gun EM Pulse Gun Energy Cannon EM Pulse Cannon Ballistic Gun Minigun Ballistic Cannon Gauss Cannon Launcher Grenade Launcher Slashing Weapon Katana Build | -11 -10 -10 -9 -9 -8 ------- Run | Yrd Mat Min Mat Min Mat Slots Evolved 4 | . . . 2 . 2 Power . | . . . . . . Propulsion 2 | . . . . . 2 Utility 2 | . . . 2 . . Weapon . | . . . . . . Parts Attached 46 | 7 5 6 9 1 18 Power 5 | 1 . . 1 . 3 Engine 2 | 1 . . 1 . . Core 3 | . . . . . 3 Reactor . | . . . . . . Propulsion 13 | 2 2 3 . . 6 Treads 3 | . . 1 . . 2 Leg 5 | 2 . 2 . . 1 Wheel 2 | . 2 . . . . Hover 2 | . . . . . 2 Flight 1 | . . . . . 1 Utility 12 | 1 3 . 6 1 1 Device 3 | . . . 2 1 . Storage 4 | 1 2 . 1 . . Processor 3 | . 1 . 2 . . Hackware . | . . . . . . Protection 2 | . . . 1 . 1 Artifact . | . . . . . . Weapon 16 | 3 . 3 2 . 8 Energy Gun 4 | 2 . 2 . . . Energy Cannon 7 | . . . 2 . 5 Ballistic Gun 2 | 1 . . . . 1 Ballistic Cannon 1 | . . . . . 1 Launcher 1 | . . 1 . . . Special Weapon . | . . . . . . Impact Weapon . | . . . . . . Slashing Weapon 1 | . . . . . 1 Piercing Weapon . | . . . . . . Special Melee Weapon . | . . . . . . Unidentified Prototypes 1 | . . . . . 1 Parts Lost 14 | . . 2 1 . 11 Power 2 | . . . . . 2 Propulsion 8 | . . 2 . . 6 Utility 2 | . . . 1 . 1 Weapon 2 | . . . . . 2 Highest Loss Streak 4 | . . 2 1 . 4 To Critical Strikes 1 | . . . . . 1 Average Slot Usage (%) 87 | . 96 97 98 100 71 Engine 8 | . 14 14 11 11 2 Core 1 | . . . . . 4 Treads 2 | . . . . . 5 Leg 15 | . 19 7 22 22 7 Wheel 2 | . 8 17 . . . Device 5 | . . . 7 6 7 Storage 10 | . 14 14 11 11 8 Processor 17 | . 11 14 22 22 16 Protection 1 | . . . 2 4 . Energy Gun 8 | . 28 26 6 . . Energy Cannon 12 | . . . 15 22 14 Naked Turns 26 | . . . . . 26 Heaviest Build 100 | 12 87 88 100 44 40 Greatest Support 42 | 20 26 26 20 20 42 Greatest Overweight (x) 12 | . 3 4 4 2 12 Average Overweight (x) 1 | . . 3 3 1 . Largest Inventory Capacity 25 | 8 25 25 25 15 15 Average Capacity 16 | 7 13 25 22 15 14 Most Carried 21 | 6 11 11 21 15 15 Average Carried 12 | 4 8 10 14 15 13 Final Capacity 25 | 8 25 25 15 15 5 Final Carried 15 | 6 11 9 15 15 5 Class Distribution -------------------- 100% | Mutant Dominant Class ---------------- Mutant | -10/Materials Mutant | -10/Mines Mutant | -9/Materials Mutant | -9/Mines Mutant | -8/Materials Resources | -11 -10 -10 -9 -9 -8 ----------- Run | Yrd Mat Min Mat Min Mat Matter Collected 674 | 244 74 17 135 20 184 Remotely . | . . . . . . Salvage Created 1484 | . 142 29 472 . 841 Parts 76 | . 4 6 33 . 33 Haulers Intercepted 4 | . 1 . 2 . 1 Recyclers Shooed . | . . . . . . Parts Field Recycled . | . . . . . . Retrieved Matter . | . . . . . . Parts Self-Destructed . | . . . . . . Prevented . | . . . . . . Kills | -11 -10 -10 -9 -9 -8 ------- Run | Yrd Mat Min Mat Min Mat Combat Hostiles Destroyed 29 | . 2 3 10 . 14 Melee 1 | . . . . . 1 Guns 6 | . 1 1 1 . 3 Cannons 16 | . . . 8 . 8 AOE 4 | . 1 2 1 . . Classes Destroyed 8 | . 2 1 4 . 1 Worker 2 | . . . 1 . 1 Builder 1 | . . . 1 . . Hauler 4 | . 1 . 2 . 1 Watcher 4 | . . . 3 . 1 Swarmer 11 | . . 3 7 . 1 Grunt 13 | . 2 . 2 . 9 Sentry 3 | . . . 1 . 2 Hunter 2 | . . . . . 2 Best Kill Streak 5 | . 2 3 5 . 2 Combat Bots Only 4 | . 2 3 4 . 3 Max Kills in Single Turn 2 | . 1 2 2 . 1 Gunslinging . | . . . . . . Exploded 2 | . 1 2 1 . . Melee 1 | . . . . . 1 Uniques/NPCs Destroyed . | . . . . . . Combat | -11 -10 -10 -9 -9 -8 -------- Run | Yrd Mat Min Mat Min Mat Hostile Shots Fired 248 | . 7 10 49 . 182 Missed 68 | . 3 4 12 . 49 Damage Taken 2355 | . 106 73 348 . 1828 Core 634 | . 11 19 47 . 557 Absorbed by Shields . | . . . . . . Core Remaining (%) 92 | 100 . 88 . 88 . Volleys Fired 78 | . 6 4 19 . 49 Largest 2 | . 2 2 2 . 2 Hottest 126 | . 80 80 126 . 126 Shots Fired 148 | . 12 8 38 . 90 Gun 43 | . 12 6 8 . 17 Cannon 103 | . . . 30 . 73 Launcher 2 | . . 2 . . . Special . | . . . . . . Kinetic 18 | . . . . . 18 Thermal 29 | . . . . . 29 Explosive 2 | . . 2 . . . Electromagnetic 99 | . 12 6 38 . 43 Robot Hit Streak 22 | . 6 1 8 . 22 Robot Miss Streak 4 | . 1 4 3 . 3 Penetration Max . | . . . . . . Secondary Targets . | . . . . . . Shots Hit Robots 103 | . 9 1 23 . 70 Core Hits 51 | . 4 3 17 . 27 Critical Kills . | . . . . . . Critical Parts Destroyed . | . . . . . . Critical Strikes . | . . . . . . Melee Attacks 3 | . . . . . 3 Impact . | . . . . . . Slashing 3 | . . . . . 3 Piercing . | . . . . . . Sneak Attacks . | . . . . . . Combat Hostiles . | . . . . . . Follow-up Attacks . | . . . . . . Damage Inflicted 2961 | . 248 133 821 . 1759 Guns 399 | . 120 10 81 . 188 Cannons 2024 | . . . 581 . 1443 Explosions 462 | . 128 123 155 . 56 Melee 33 | . . . . . 33 Ramming 43 | . . . 4 . 39 Kinetic 188 | . . . . . 188 Thermal 846 | . 128 . 155 . 563 Explosive 123 | . . 123 . . . Electromagnetic 1728 | . 120 10 662 . 936 Impact . | . . . . . . Slashing 33 | . . . . . 33 Piercing . | . . . . . . Highest Corruption 4 | . . . . . 4 Average Corruption 3 | . . . . . 3 Corruption Purged . | . . . . . . Corruption Blocked . | . . . . . . Effects 2 | . . . . . 2 Matter Fused 1 | . . . . . 1 Parts Rejected 1 | . . . . . 1 Overload Shots . | . . . . . . Overflow Damage 105 | . . . 76 . 29 Projectiles 73 | . . . 44 . 29 Explosions 32 | . . . 32 . . Melee . | . . . . . . Knockbacks . | . . . . . . Impact . | . . . . . . Kinetic . | . . . . . . Secondary . | . . . . . . Self-Inflicted Damage 144 | . 61 27 37 . 19 Shots 4 | . 2 1 1 . . Rammed 6 | . . . . . 6 Targets Rammed 7 | . . . 1 . 6 Kicked 1 | . . . 1 . . Crushed . | . . . . . . Highest Temperature 198 | . 108 36 192 . 198 Average Temperature 65 | . 48 15 71 . 67 Received Heat Transfer 693 | . 24 . 12 . 657 Siege Activations . | . . . . . . Robots Corrupted 2 | . . . . . 2 Combat Hostiles 2 | . . . . . 2 Parts Fried 15 | . 1 . 6 . 8 Impact Corruptions . | . . . . . . Robots Melted . | . . . . . . Combat Hostiles . | . . . . . . Parts Melted 1 | . . . . . 1 Heat Transferred 1314 | . 150 . 300 . 864 Parts Sabotaged . | . . . . . . Parts Stolen . | . . . . . . Parts Stripped . | . . . . . . Power Chain Reactions 5 | . 2 . 2 . 1 Alert | -11 -10 -10 -9 -9 -8 ------- Run | Yrd Mat Min Mat Min Mat Peak Influence 281 | . 86 66 281 109 255 Initial 109 | . . . 25 109 42 Average 83 | . 19 26 105 109 105 Maximum Alert Level 1 | . . . 1 . 1 Low Security (%) 89 | 100 100 100 73 100 92 Level 1 10 | . . . 26 . 7 Level 2 . | . . . . . . Level 3 . | . . . . . . Level 4 . | . . . . . . Level 5 . | . . . . . . High Security . | . . . . . . Max Security . | . . . . . . Squads Dispatched 5 | . 1 . . . 4 Investigation . | . . . . . . Extermination . | . . . . . . Reinforcement 5 | . 1 . . . 4 Assault . | . . . . . . Garrison . | . . . . . . Intercept . | . . . . . . Searches Triggered . | . . . . . . Construction Impeded . | . . . . . . Haulers Reinforced . | . . . . . . Active Scanning Responses . | . . . . . . Cargo Convoy Interrupts . | . . . . . . Stealth | -11 -10 -10 -9 -9 -8 --------- Run | Yrd Mat Min Mat Min Mat Distress Signals 7 | . . . 3 . 4 Communications Jammed . | . . . . . . Distress Signals . | . . . . . . Times Spotted 64 | . 4 3 19 . 38 Peak Tracking Total 12 | . 2 3 6 . 12 Tactical Retreats 4 | . . . 1 . 3 Traps | -11 -10 -10 -9 -9 -8 ------- Run | Yrd Mat Min Mat Min Mat Traps Triggered . | . . . . . . Indirectly . | . . . . . . Trap Hack Attempts . | . . . . . . Triggered . | . . . . . . Disarmed . | . . . . . . Reprogrammed . | . . . . . . Reused . | . . . . . . Traps Extracted . | . . . . . . Installed . | . . . . . . Triggered . | . . . . . . Machines | -11 -10 -10 -9 -9 -8 ---------- Run | Yrd Mat Min Mat Min Mat Machines Disabled . | . . . . . . Max in Single Turn . | . . . . . . Machines Repaired . | . . . . . . Machines Dismantled . | . . . . . . Machines Sabotaged . | . . . . . . Overloaded Fab Kills . | . . . . . . Hacking | -11 -10 -10 -9 -9 -8 --------- Run | Yrd Mat Min Mat Min Mat Machines Accessed 6 | . 2 . 1 . 3 Terminals 2 | . 1 . . . 1 Fabricators . | . . . . . . Repair Stations 1 | . . . . . 1 Recycling Units 2 | . 1 . . . 1 Scanalyzers 1 | . . . 1 . . Garrison Access . | . . . . . . Total Hacks 11 | . 3 . 1 . 7 Successful 6 | . 2 . . . 4 Failed 5 | . 1 . 1 . 3 Catastrophic . | . . . . . . Database Lockouts . | . . . . . . Manual . | . . . . . . Terminals 7 | . 2 . . . 5 Fabricators . | . . . . . . Repair Stations 1 | . . . . . 1 Recycling Units 2 | . 1 . . . 1 Scanalyzers 1 | . . . 1 . . Garrison Access . | . . . . . . Terminal Hacks 4 | . 2 . . . 2 Record 1 | . . . . . 1 Prototype ID Bank 1 | . 1 . . . . Emergency Access Points 1 | . 1 . . . . Recall Investigation 1 | . . . . . 1 Fabricator Hacks . | . . . . . . Repair Station Hacks 1 | . . . . . 1 Scan Component 1 | . . . . . 1 Recycling Unit Hacks 1 | . . . . . 1 Retrieve Components 1 | . . . . . 1 Scanalyzer . | . . . . . . Garrison Access Hacks . | . . . . . . Unauthorized Hacks . | . . . . . . Terminals . | . . . . . . Fabricators . | . . . . . . Repair Stations . | . . . . . . Recycling Units . | . . . . . . Scanalyzers . | . . . . . . Garrison Access . | . . . . . . Data Cores Recovered . | . . . . . . Used . | . . . . . . Hacking Detections 4 | . 2 . 1 . 1 Full Trace Events . | . . . . . . Feedback Events . | . . . . . . Feedback Blocked . | . . . . . . Robot Schematics Acquired . | . . . . . . Robots Built . | . . . . . . Authchips . | . . . . . . Time . | . . . . . . Total Robot Build Rating . | . . . . . . Part Schematics Acquired . | . . . . . . Parts Built . | . . . . . . Authchips . | . . . . . . Time . | . . . . . . Total Part Build Rating . | . . . . . . Parts Repaired . | . . . . . . Time . | . . . . . . Parts Recycled . | . . . . . . Recycled Matter . | . . . . . . Retrieved Matter . | . . . . . . Retrieved Components 2 | . . . . . 2 Parts Scanalyzed . | . . . . . . Part Schematics Acquired . | . . . . . . Parts Damaged . | . . . . . . Bothacking | -11 -10 -10 -9 -9 -8 ------------ Run | Yrd Mat Min Mat Min Mat Used RIF Installer . | . . . . . . Robots Hacked . | . . . . . . Non-combat . | . . . . . . Combat . | . . . . . . Robot Hacks Applied . | . . . . . . Relay Couplers Released . | . . . . . . Fabnet Peak Effective % . | . . . . . . Robots Rewired . | . . . . . . Allies Hacked . | . . . . . . Hacks Repelled . | . . . . . . Allies | -11 -10 -10 -9 -9 -8 -------- Run | Yrd Mat Min Mat Min Mat Total Allies . | . . . . . . Largest Group . | . . . . . . Highest-Rated Group . | . . . . . . Highest-Rated Ally . | . . . . . . Total Orders . | . . . . . . Ally Attacks . | . . . . . . Total Damage . | . . . . . . Kills . | . . . . . . Allies Corrupted . | . . . . . . Allies Melted . | . . . . . . Intel | -11 -10 -10 -9 -9 -8 ------- Run | Yrd Mat Min Mat Min Mat Robot Analysis Total . | . . . . . . Derelict Logs Recovered 1 | . . . . 1 . Drone Launches . | . . . . . . Drone Recoveries . | . . . . . . Exploration | -11 -10 -10 -9 -9 -8 ------------- Run | Yrd Mat Min Mat Min Mat Turns Passed 2446 | 76 423 113 706 196 932 Spaces Moved 1073 | 60 311 56 168 86 392 Core 89 | 20 . . . . 69 Treads 133 | . . . . . 133 Legs 695 | 40 231 8 168 86 162 Wheels 128 | . 80 48 . . . Hover 28 | . . . . . 28 Flight . | . . . . . . Fastest Speed 50 | 50 120 135 190 190 50 Average Speed 184 | 96 123 172 358 211 167 Slowest Speed 650 | 120 135 400 400 260 650 Overloaded Moves . | . . . . . . Propulsion Burnouts . | . . . . . . Robots Hopped . | . . . . . . Cave-ins Triggered . | . . . . . . Exploration Rate (%) 28 | 5 51 22 20 25 46 Regions Visited 5 Branch Regions 2 Pre-discovered Areas . | . . . . . . Known Exits Taken 4 | . 1 1 1 1 . Unknown Exits Taken 1 | 1 . . . . . Scrap Searched 2 | . . . . 2 . Spaces Dug . | . . . . . . Terrain Destroyed 36 | . 9 16 5 . 6 Melee . | . . . . . . Projectile 3 | . . . . . 3 AOE 33 | . 9 16 5 . 3 Terrain Rammed . | . . . . . . Walls Destroyed . | . . . . . . Machines Disabled . | . . . . . . Actions | -11 -10 -10 -9 -9 -8 --------- Run | Yrd Mat Min Mat Min Mat Total 1390 | 77 337 65 235 100 576 Wait 106 | . 6 . 2 14 84 Move 1068 | 59 310 55 167 85 392 Hop . | . . . . . . Pick Up 53 | 10 7 . 23 . 13 Fast Attach 8 | 2 . . . . 6 Attach 16 | 5 1 2 3 . 5 Detach 1 | 1 . . . . . Swap 22 | . 4 4 6 1 7 Drop 28 | . 3 . 14 . 11 Fire 78 | . 6 4 19 . 49 Melee 3 | . . . . . 3 Ram 6 | . . . . . 6 Kick 1 | . . . 1 . . Crush . | . . . . . . Escape Stasis . | . . . . . . Rewire . | . . . . . . Trap . | . . . . . . Miscellaneous . | . . . . . . Route ------- -11/Scrapyard -10/Materials -10/Mines -9/Materials -9/Mines -8/Materials (discovered 1 exit: Fac) History --------- Turn | Location | Event 7 | -11/Scrapyard | Discovered new exit (range 16) 77 | -11/Scrapyard | Entered Materials 300 | -10/Materials | Build established: Mutant 493 | -10/Materials | Discovered new exit (range 6) 498 | -10/Materials | Identified exit to Mines 500 | -10/Materials | Entered Mines 561 | -10/Mines | Discovered new exit (range 6) 609 | -10/Mines | Identified exit to Materials 613 | -10/Mines | Entered Materials 613 | -9/Materials | Evolved 2 slots: Utility x2 1262 | -9/Materials | Discovered new exit (range 6) 1272 | -9/Materials | Identified exit to Mines 1319 | -9/Materials | Entered Mines 1377 | -9/Mines | Learned 2 Materials zone layouts 1415 | -9/Mines | Discovered new exit (range 11) 1513 | -9/Mines | Identified exit to Materials 1515 | -9/Mines | Entered Materials 1515 | -8/Materials | Evolved 2 slots: Propulsion x2 1516 | -8/Materials | Identified exit to Factory 2374 | -8/Materials | Released all parts (8) 2378 | -8/Materials | Core integrity fell below 50% 2426 | -8/Materials | Core integrity fell below 20% 2447 | -8/Materials | Destroyed by H-55 Commando with Assault Rifle Last Messages --------------- 02394_ K-01 Serf destroyed. 02394_ Faulty Imp. VTOL Module destroyed. 02394_ System corrupted by crushing effect (+1). 02395_ Acquired 13 matter. 02401_ Acquired Gravmag System. 02406_ Acquired Gauss Cannon. 02407_ System corrupted: Matter fused (-7). 02407_ ALERT: Hostiles spotted, dispatching reinforcements to Terminal M002. 02409_ S-10 Pest destroyed. 02415_ Acquired Katana. 02422_ S-10 Pest destroyed. 02422_ Gravmag System destroyed. 02424_ System corrupted: Katana rejected. 02425_ Acquired 19 matter. 02433_ Gravmag System destroyed. 02437_ Gauss Cannon destroyed. 02441_ Slammed into T-07 Excavator. 02442_ T-07 Excavator sends out distress signal. 02442_ Slammed into G-47 Trooper. Map ----- +----------------------------------------------------+ | ^ ##########????????? | | #?????????????????? | | ###???????????????? | | #######+## ^ ""#???????????????? | | # # """ """ ^""" T"#???????????????? | | # # """ """ """ ""#???????????????? | | # # """ """ """ ##### ###?????????? | | # # """ """ """ ### #?????????? | | + # " #?????????? | | # # "T #?????????? | | # # #?????????? | | # # ####### #?????????? | | # ##############w ##?????#######?????????? | | ##########????????????# #??????????????????????? | | ??????????????????????# #??????????????????????? | | ??????????????????????#! #??????????????????????? | | ????????????#######???#!!]#??????????????????????? | | ????????????# ??#]![##?????????????????????? | | ????????????# = ?##=!w##?????????????????????? | | ????????????# #!!!=%###########???????????? | | ????????????# #=]=!= #???????????? | | ????????????# + [%= %= #???????????? | | ????????????# #ht! =% #???????????? | | ????????????# # ####### ##########??? | | ????????????# ?## ##?????# # #??? | | ????????????# ??# @#??????# # """ #??? | | ????????????#######???# #??????# # """ #??? | | ??????????????????????# #??????# # """ #??? | | #######??????????###### g #??????# + #??? | | ]]==!!#??????????# sg #??????# # """ #??? | | ] !!#??????????# #### #??????# # """ ##?? | | #??###+###?# #####+#####???# # """ #?? | | %* #### #?# ## / #???# # ##?? | | = ### ##! #???# ##########??? | | ## #???# #???????? | | ###### #???# < #???????? | | ##+####"## #????# #???# #???????? | | /*=/ ######+###????# #?######+#######????? | | #??? ?????# #?# #????? | | "" #?#""" T #???# #?# """ """ #????? | | S"" #?#""" #???# #?# """ """ #????? | | "" #?#""" = #???##########?# """ """ #????? | | #?# !#??????????????# #????? | | #######?#########??????????????##############????? | | | | | | | | | | | | | +----------------------------------------------------+ Best States ------------- Heat Dissipation 31 Energy Generation 14 Energy Capacity 265 Matter Stores 300 Matter Capacity 300 Sight Range 16 Robot Scan Range 15 Terrain Scan Density 10 Armor Coverage 150 Evasion (%) 55 Targeting Accuracy 6 Recoil Reduction 2 Item Schematics ----------------- None Robot Schematics ------------------ None Fabricated ------------ Nothing Alien Tech Used ----------------- None Achievements -------------- None Challenges ------------ None Game ------ Seed SiegeDecoderReplicator Manual? 0 Play Time 00:27:53 Cumulative 18.6 hours Start 2024.04.04 @ 15:48:02 End 2024.04.04 @ 16:15:40 Sessions 1 Manual Loads 0 Difficulty Rogue Special Mode None Game No. 31 Rogue 31 Adventurer 0 Explorer 0 Win Type - Total 0 Types 0/0/0/0/0/0/0/0/0 Lore% 18 Gallery% 27 Achievement% 24 Wizard Run 0 Options --------- Layout 0 ASCII 0 Keyboard 0 Movement Numpad Keybinds 0 Fullscreen 2 Font 24/Smallcaps Map View 76x50 Zoom Use 0% Tactical HUD 1 Map Filters NONE Filters NONE Steam 1 RUN: c97e6a2c-d448-431d-9f78-61c7ee0f6a7d